fUSD/lending_fUSD_20250806
["ID","MTS","AMOUNT","RATE_DAILY","PERIOD"]
[377561769,1754442683886,-828.45,0.00036164,14]
[377561770,1754442683895,-1420.29,0.00036164,14]
[377561771,1754442683904,-2523.08,0.00036164,14]
[377561772,1754442683914,-400.0,0.00036164,14]
[377561773,1754442683925,-1217.7,0.00036164,14]
[377561774,1754442683936,-2391.18,0.00036164,14]
[377561775,1754442683945,-1353.33,0.00036164,14]
[377561776,1754442683954,-4582.75,0.00036164,14]
[377561777,1754442683964,-510.52,0.00036164,14]
[377561778,1754442683973,-1444.34,0.00036164,14]
[377561779,1754442683983,-800.48,0.00036164,14]
[377561780,1754442683992,-3090.38,0.00036164,14]
[377561781,1754442684001,-2122.19,0.00036164,14]
[377561782,1754442684011,-1505.83,0.00036164,14]
[377561783,1754442684019,-400.0,0.00036164,14]
[377561784,1754442684029,-1675.42,0.00036164,14]
[377561785,1754442684038,-415.57,0.00036164,14]
[377561786,1754442684047,-400.0,0.00036164,14]
[377561787,1754442684056,-400.0,0.00036164,14]
[377561788,1754442684065,-990.08,0.00036164,14]
[377561789,1754442684074,-2315.03,0.00036164,14]
[377561790,1754442684083,-2465.39,0.00036164,14]
[377561791,1754442684093,-1639.8,0.00036164,14]
[377561792,1754442684105,-400.0,0.00036164,14]
[377561793,1754442684114,-400.0,0.00036164,14]
[377561794,1754442684123,-2484.1,0.00036164,14]
[377561795,1754442684133,-400.0,0.00036164,14]
[377561796,1754442684142,-1134.9,0.00036164,14]
[377561797,1754442684151,-1606.33,0.00036164,14]
[377561798,1754442684162,-2010.04,0.00036164,14]
[377561799,1754442684171,-400.0,0.00036164,14]
[377561800,1754442684180,-300.0,0.00036164,14]
[377561801,1754442684189,-400.0,0.00036164,14]
[377561802,1754442684198,-1572.81,0.00036164,14]
[377561803,1754442684208,-400.0,0.00036164,14]
[377561804,1754442684220,-400.0,0.00036164,14]
[377561805,1754442684232,-400.0,0.00036164,14]
[377561806,1754442684241,-976.67,0.00036164,14]
[377561807,1754442684251,-151.0,0.00036164,7]
[377561808,1754442684261,-1857.15,0.00036164,14]
[377561809,1754442684271,-283.11,0.00036164,14]
[377561810,1754442684280,-1346.41,0.00036164,14]
[377561811,1754442684295,-744.01,0.00036164,14]
[377561812,1754442684309,-1925.81,0.00036164,14]
[377561813,1754442684319,-2216.89,0.00036164,14]
[377561814,1754442684328,-959.38,0.00036164,14]
[377561815,1754442684338,-659.92,0.00036164,14]
[377561816,1754442684347,-400.0,0.00036164,14]
[377561817,1754442684356,-2901.33,0.00036164,14]
[377561818,1754442684366,-400.0,0.00036164,14]
[377561819,1754442684375,-400.0,0.00036164,14]
[377561820,1754442684385,-400.0,0.00036164,14]
[377561821,1754442684394,-1076.24,0.00036164,14]
[377561822,1754442684403,-1714.16,0.00036164,14]
[377561823,1754442684413,-1429.75,0.00036164,14]
[377561824,1754442684423,-2076.05,0.00036164,14]
[377561825,1754442684434,-403.07,0.00036164,14]
[377561826,1754442684443,-1106.3,0.00036164,14]
[377561827,1754442684452,-1733.29,0.00036164,14]
[377561828,1754442684462,-71180.7,0.00036164,14]
[377561829,1754442684471,-803.68,0.00036164,14]
[377561830,1754442684481,-2097.99,0.00036164,14]
[377561831,1754442684490,-530.62,0.00036164,14]
[377561832,1754442684499,-1403.33,0.00036164,14]
[377561833,1754442684508,-400.0,0.00036164,14]
[377561834,1754442684518,-865.88,0.00036164,14]
[377561835,1754442684528,-1054.54,0.00036164,14]
[377561836,1754442684537,-949.49,0.00036164,14]
[377561837,1754442684546,-708.86,0.00036164,14]
[377561838,1754442684555,-2531.64,0.00036164,14]
[377561839,1754442684565,-1028.9,0.00036164,14]
[377561840,1754442684574,-400.0,0.00036164,14]
[377561841,1754442684584,-462.06,0.00036164,14]
[377561842,1754442684593,-1876.24,0.00036164,14]
[377561843,1754442684602,-746.56,0.00036164,14]
[377561844,1754442684612,-400.0,0.00036164,14]
[377561845,1754442684621,-398.69748385,0.00036164,14]
[377561846,1754442684630,-931.48,0.00036164,14]
[377561847,1754442684639,-2720.87,0.00036164,14]
[377561848,1754442684649,-400.0,0.00036164,14]
[377561849,1754442684658,-870.66,0.00036164,14]
[377561850,1754442684667,-400.0,0.00036164,14]
[377561851,1754442684675,-1175.54,0.00036164,14]
[377561852,1754442684684,-400.0,0.00036164,14]
[377561853,1754442684694,-3000.64,0.00036164,14]
[377561854,1754442684703,-633.94,0.00036164,14]
[377561855,1754442684712,-1225.57,0.00036164,14]
[377561856,1754442684721,-400.0,0.00036164,14]
[377561857,1754442684730,-1902.8,0.00036164,14]
[377561858,1754442684739,-2045.59,0.00036164,14]
[377561859,1754442684748,-434.21,0.00036164,14]
[377561860,1754442684757,-400.0,0.00036164,14]
[377561861,1754442684766,-998.47,0.00036164,14]
[377561862,1754442684776,-400.0,0.00036164,14]
[377561863,1754442684785,-400.0,0.00036164,14]
[377561864,1754442684794,-1355.58,0.00036164,14]
[377561865,1754442684803,-400.0,0.00036164,14]
[377561866,1754442684813,-400.0,0.00036164,14]
[377561867,1754442684822,-1795.96,0.00036164,14]
[377561868,1754442684832,-1564.58,0.00036164,14]
[377561869,1754442684841,-400.0,0.00036164,14]
[377561870,1754442684850,-1873.15,0.00036164,14]
[377561871,1754442684859,-2344.91,0.00036164,14]
[377561872,1754442684868,-400.0,0.00036164,14]
[377561873,1754442684877,-1545.05,0.00036164,14]
[377561874,1754442684887,-485.72,0.00036164,14]
[377561875,1754442684896,-1667.5,0.00036164,14]
[377561876,1754442684905,-1706.89,0.00036164,14]
[377561877,1754442684914,-1836.42,0.00036164,14]
[377561878,1754442684928,-400.0,0.00036164,14]
[377561879,1754442684937,-1036.37,0.00036164,14]
[377561880,1754442684946,-500.3,0.00036164,14]
[377561881,1754442684956,-400.0,0.00036164,14]
[377561882,1754442684965,-1544.77,0.00036164,14]
[377561883,1754442684975,-1224.22,0.00036164,14]
[377561884,1754442684984,-2426.19,0.00036164,14]
[377561885,1754442684994,-1248.82,0.00036164,14]
[377561886,1754442685003,-637.4,0.00036164,14]
[377561887,1754442685013,-2397.5,0.00036164,14]
[377561888,1754442685022,-1417.98,0.00036164,14]
[377561889,1754442685031,-400.0,0.00036164,14]
[377561890,1754442685040,-798.91,0.00036164,14]
[377561891,1754442685050,-1674.96,0.00036164,14]
[377561892,1754442685059,-571.75,0.00036164,14]
[377561893,1754442685069,-400.0,0.00036164,14]
[377561894,1754442685078,-1071.09,0.00036164,14]
[377561895,1754442685087,-674.78,0.00036164,14]
[377561896,1754442685097,-400.0,0.00036164,14]
[377561897,1754442685106,-1579.0,0.00036164,14]
[377561898,1754442685116,-400.0,0.00036164,14]
[377561899,1754442685125,-845.65,0.00036164,14]
[377561900,1754442685134,-1796.24,0.00036164,14]
[377561901,1754442685143,-1157.39,0.00036164,14]
[377561902,1754442685152,-435.63,0.00036164,14]
[377561903,1754442685161,-1825.42,0.00036164,14]
[377561904,1754442685173,-414.19,0.00036164,14]
[377561905,1754442685182,-1825.42,0.00036164,14]
[377561906,1754442685191,-400.0,0.00036164,14]
[377561907,1754442685201,-400.0,0.00036164,14]
[377561908,1754442685210,-688.85,0.00036164,14]
[377561909,1754442685224,-1026.68,0.00036164,14]
[377561910,1754442685235,-400.0,0.00036164,14]
[377561911,1754442685245,-165.51557661,0.00036164,14]
[377561912,1754442685254,-933.37,0.00036164,14]
[377561913,1754442685264,-512.39,0.00036164,14]
[377561914,1754442685274,-443.14,0.00036164,14]
[377561915,1754442685283,-1596.07,0.00036164,14]
[377561916,1754442685293,-400.0,0.00036164,14]
[377561917,1754442685306,-1081.6,0.00036164,14]
[377561918,1754442685316,-2189.81,0.00036164,14]
[377561919,1754442685325,-1677.89,0.00036164,14]
[377561920,1754442685335,-953.14,0.00036164,14]
[377561921,1754442685345,-400.0,0.00036164,14]
[377561922,1754442685354,-789.16,0.00036164,14]
[377561923,1754442685363,-899.95,0.00036164,14]
[377561924,1754442685373,-1839.11,0.00036164,14]
[377561925,1754442685382,-400.0,0.00036164,14]
[377561926,1754442685392,-998.17,0.00036164,14]
[377561927,1754442685402,-964.26,0.00036164,14]
[377561928,1754442685411,-944.7,0.00036164,14]
[377561929,1754442685420,-11077.98,0.00036164,14]
[377561930,1754442685429,-2662.37,0.00036164,14]
[377561931,1754442685438,-1086.06,0.00036164,14]
[377561932,1754442685447,-1724.68,0.00036164,14]
[377561933,1754442685457,-1927.37,0.00036164,14]
[377561934,1754442685466,-3043.44,0.00036164,14]
[377561935,1754442685475,-1852.32,0.00036164,14]
[377561936,1754442685485,-1367.44,0.00036164,14]
[377561937,1754442685494,-481.77,0.00036164,14]
[377561938,1754442685504,-400.0,0.00036164,14]
[377561939,1754442685512,-2168.63,0.00036164,14]
[377561940,1754442685521,-151.0,0.00036164,7]
[377561941,1754442685530,-992.97,0.00036164,14]
[377561942,1754442685540,-400.0,0.00036164,14]
[377561943,1754442685549,-1497.51,0.00036164,14]
[377561944,1754442685559,-2308.05,0.00036164,14]
[377561945,1754442685568,-519.57,0.00036164,14]
[377561946,1754442685578,-2166.93,0.00036164,14]
[377561947,1754442685587,-555.63,0.00036164,14]
[377561948,1754442685597,-694.12,0.00036164,14]
[377561949,1754442685606,-400.0,0.00036164,14]
[377561950,1754442685615,-831.42,0.00036164,14]
[377561951,1754442685624,-630.58,0.00036164,14]
[377561952,1754442685633,-400.0,0.00036164,14]
[377561953,1754442685643,-1347.12,0.00036164,14]
[377561954,1754442685652,-400.0,0.00036164,14]
[377561955,1754442685661,-1527.34,0.00036164,14]
[377561956,1754442685671,-400.0,0.00036164,14]
[377561957,1754442685681,-400.0,0.00036164,14]
[377561958,1754442685690,-400.0,0.00036164,14]
[377561959,1754442685699,-797.7,0.00036164,14]
[377561960,1754442685708,-774.04,0.00036164,14]
[377561961,1754442685717,-1482.49,0.00036164,14]
[377561962,1754442685725,-400.0,0.00036164,14]
[377561963,1754442685735,-972.26,0.00036164,14]
[377561964,1754442685743,-856.6,0.00036164,14]
[377561965,1754442685752,-829.38,0.00036164,14]
[377561966,1754442685761,-314.77264355,0.00036164,14]
[377561967,1754442685770,-2895.81,0.00036164,14]
[377561968,1754442685780,-2155.65,0.00036164,14]
[377561969,1754442685789,-400.0,0.00036164,14]
[377561970,1754442685798,-400.0,0.00036164,14]
[377561971,1754442685807,-1220.16,0.00036164,14]
[377561972,1754442685816,-400.0,0.00036164,14]
[377561973,1754442685825,-1817.13,0.00036164,14]
[377561974,1754442685834,-1686.84,0.00036164,14]
[377561975,1754442685843,-400.0,0.00036164,14]
[377561976,1754442685852,-918.29,0.00036164,14]
[377561977,1754442685861,-400.0,0.00036164,14]
[377561978,1754442685870,-2906.26,0.00036164,14]
[377561979,1754442685879,-400.0,0.00036164,14]
[377561980,1754442685888,-1831.61,0.00036164,14]
[377561981,1754442685897,-2072.8,0.00036164,14]
[377561982,1754442685907,-400.0,0.00036164,14]
[377561983,1754442685916,-400.0,0.00036164,14]
[377561984,1754442685926,-400.0,0.00036164,14]
[377561985,1754442685935,-1684.07,0.00036164,14]
[377561986,1754442685945,-400.0,0.00036164,14]
[377561987,1754442685954,-400.0,0.00036164,2]
[377561988,1754442685963,-437.87,0.00036164,14]
[377561989,1754442685972,-400.0,0.00036164,14]
[377561990,1754442685982,-1285.21,0.00036164,14]
[377561991,1754442685991,-484.61,0.00036164,14]
[377561992,1754442686000,-1327.42,0.00036164,14]
[377561993,1754442686009,-877.04,0.00036164,14]
[377561994,1754442686018,-2588.34,0.00036164,14]
[377561995,1754442686027,-911.75,0.00036164,14]
[377561996,1754442686036,-2933.48,0.00036164,14]
[377561997,1754442686046,-890.81,0.00036164,14]
[377561998,1754442686055,-882.17,0.00036164,14]
[377561999,1754442686064,-400.0,0.00036164,14]
[377562000,1754442686073,-151.0,0.00036164,7]
[377562001,1754442686082,-2152.31,0.00036164,14]
[377562002,1754442686091,-1922.57,0.00036164,14]
[377562003,1754442686100,-1093.71,0.00036164,14]
[377562004,1754442686110,-400.0,0.00036164,14]
[377562005,1754442686118,-400.0,0.00036164,14]
[377562006,1754442686127,-2239.45,0.00036164,14]
[377562007,1754442686136,-662.2,0.00036164,2]
[377562008,1754442686145,-734.75,0.00036164,14]
[377562009,1754442686155,-1577.92,0.00036164,14]
[377562010,1754442686164,-1074.63,0.00036164,14]
[377562011,1754442686174,-4402.83,0.00036164,14]
[377562012,1754442686183,-400.0,0.00036164,14]
[377562013,1754442686192,-400.0,0.00036164,14]
[377562014,1754442686201,-400.0,0.00036164,14]
[377562015,1754442686211,-1169.16,0.00036164,14]
[377562016,1754442686223,-1516.96,0.00036164,14]
[377562017,1754442686232,-735.3,0.00036164,14]
[377562018,1754442686241,-150.0,0.00036167,2]
[377562019,1754442686250,-150.0,0.00036172,2]
[377562020,1754442686260,-150.0,0.00036178,2]
[377562021,1754442686270,-150.0,0.0003618,2]
[377562022,1754442686279,-150.0,0.00036188,2]
[377562023,1754442686289,-150.0,0.0003619,2]
[377562024,1754442686300,-150.0,0.00036191,2]
[377562025,1754442686310,-150.0,0.00036192,2]
[377562026,1754442686319,-150.0,0.00036195,2]
[377562027,1754442686328,-28904.0233153,0.00036196,2]
[377562028,1754442686338,-890.6711148,0.00036196,2]
[377562029,1754442686347,-602.18,0.000362,30]
[377562030,1754442686356,-150.0,0.000362,2]
[377562031,1754442686366,-150.0,0.00036204,2]
[377562032,1754442686375,-150.0,0.00036206,2]
[377562033,1754442686385,-150.0,0.00036207,2]
[377562034,1754442686394,-150.0,0.00036207,2]
[377562035,1754442686403,-150.0,0.00036213,2]
[377562036,1754442686413,-150.0,0.00036216,2]
[377562037,1754442686423,-150.0,0.00036216,2]
[377562038,1754442686431,-150.0,0.00036219,2]
[377562039,1754442686441,-150.0,0.0003622,2]
[377562040,1754442686451,-150.0,0.00036221,2]
[377562041,1754442686469,-150.0,0.00036224,2]
[377562042,1754442686481,-731.23987709,0.00036232,2]
[377562043,1754442686490,-150.0,0.00036233,2]
[377562044,1754442686500,-150.0,0.00036243,2]
[377562045,1754442686509,-150.0,0.00036244,2]
[377562046,1754442686518,-150.0,0.00036244,2]
[377562047,1754442686527,-150.0,0.00036245,2]
[377562048,1754442686537,-150.0,0.00036245,2]
[377562049,1754442686546,-13334.35861568,0.00036246,2]
[377562050,1754442686556,-150.0,0.00036246,2]
[377562051,1754442686565,-150.0,0.00036246,2]
[377562052,1754442686574,-150.0,0.00036248,2]
[377562053,1754442686584,-150.0,0.00036252,2]
[377562054,1754442686593,-150.0,0.00036255,2]
[377562055,1754442686602,-874.0527,0.00036256,2]
[377562056,1754442686611,-150.0,0.00036262,2]
[377562057,1754442686620,-150.0,0.00036265,2]
[377562058,1754442686629,-150.0,0.00036267,2]
[377562059,1754442686638,-150.0,0.00036273,2]
[377562060,1754442686648,-150.0,0.00036274,2]
[377562061,1754442686658,-150.0,0.00036275,2]
[377562062,1754442686667,-150.0,0.00036276,2]
[377562063,1754442686677,-150.0,0.00036276,2]
[377562064,1754442686687,-150.0,0.00036277,2]
[377562065,1754442686696,-150.0,0.00036278,2]
[377562066,1754442686705,-151.0,0.00036288,6]
[377562067,1754442686715,-150.0,0.00036291,2]
[377562068,1754442686723,-150.0,0.00036292,2]
[377562069,1754442686733,-150.0,0.00036296,2]
[377562070,1754442686742,-150.0,0.00036301,2]
[377562071,1754442686752,-150.0,0.00036321,2]
[377562072,1754442686761,-150.0,0.00036325,2]
[377562073,1754442686771,-150.0,0.00036328,2]
[377562074,1754442686780,-150.0,0.00036332,2]
[377562075,1754442686790,-217.29147522,0.00036333,2]
[377562076,1754442686799,-500.0,0.00036337,14]
[377562077,1754442686810,-13334.35861568,0.00036338,2]
[377562078,1754442686820,-1700.13144921,0.00036338,2]
[377562079,1754442686831,-150.0,0.00036342,2]
[377562080,1754442686841,-150.0,0.00036351,2]
[377562081,1754442686852,-150.0,0.00036356,2]
[377562082,1754442686861,-150.0,0.00036357,2]
[377562083,1754442686871,-150.0,0.00036366,2]
[377562084,1754442686880,-150.0,0.00036367,2]
[377562085,1754442686889,-150.0,0.00036372,2]
[377562086,1754442686899,-150.0,0.00036374,2]
[377562087,1754442686908,-150.0,0.00036376,2]
[377562088,1754442686918,-150.0,0.00036378,2]
[377562089,1754442686928,-150.0,0.00036378,2]
[377562090,1754442686937,-150.0,0.00036389,2]
[377562091,1754442687115,-277.660025,0.000364,21]
[377562092,1754442687124,-200.0,0.000364,13]
[377562093,1754442687133,-150.0,0.00036401,2]
[377562094,1754442687143,-150.0,0.00036403,2]
[377562095,1754442687152,-150.0,0.0003641,2]
[377562096,1754442687162,-150.0,0.00036414,2]
[377562097,1754442687171,-504.37770749,0.00036421,5]
[377562098,1754442687180,-507.42143776,0.00036421,5]
[377562099,1754442687190,-1000.0,0.00036421,5]
[377562100,1754442687199,-1000.0,0.00036421,5]
[377562101,1754442687208,-503.11067785,0.00036421,5]
[377562102,1754442687218,-752.83199509,0.00036421,5]
[377562103,1754442687230,-1000.0,0.00036421,5]
[377562104,1754442687239,-1000.0,0.00036421,5]
[377562105,1754442687249,-1000.0,0.00036421,5]
[377562106,1754442687258,-1000.0,0.00036421,5]
[377562107,1754442687269,-150.0,0.00036424,2]
[377562108,1754442687279,-400.0,0.00036437,14]
[377562109,1754442687288,-400.0,0.00036437,14]
[377562110,1754442687299,-400.0,0.00036437,14]
[377562111,1754442687309,-400.0,0.00036437,14]
[377562112,1754442687319,-400.0,0.00036437,14]
[377562113,1754442687328,-400.0,0.00036437,14]
[377562114,1754442687338,-460.45405884,0.00036437,14]
[377562115,1754442687348,-400.0,0.00036437,14]
[377562116,1754442687358,-400.0,0.00036437,14]
[377562117,1754442687367,-400.0,0.00036437,14]
[377562118,1754442687377,-400.0,0.00036437,14]
[377562119,1754442687387,-441.35585265,0.00036437,14]
[377562120,1754442687396,-400.0,0.00036437,14]
[377562121,1754442687406,-400.0,0.00036437,14]
[377562122,1754442687416,-400.0,0.00036437,14]
[377562123,1754442687426,-400.0,0.00036437,14]
[377562124,1754442687435,-400.0,0.00036437,14]
[377562125,1754442687445,-400.0,0.00036437,14]
[377562126,1754442687455,-500.0,0.00036437,14]
[377562127,1754442687464,-500.0,0.00036437,14]
[377562128,1754442687474,-500.0,0.00036437,14]
[377562129,1754442687484,-500.0,0.00036437,14]
[377562130,1754442687494,-500.0,0.00036437,14]
[377562131,1754442687503,-500.0,0.00036437,14]
[377562132,1754442687513,-500.0,0.00036437,14]
[377562133,1754442687523,-365.62,0.00036437,14]
[377562134,1754442687533,-500.0,0.00036437,14]
[377562135,1754442687542,-500.0,0.00036437,14]
[377562136,1754442687552,-500.0,0.00036437,14]
[377562137,1754442687562,-500.0,0.00036437,14]
[377562138,1754442687573,-500.0,0.00036437,14]
[377562139,1754442687582,-480.32,0.00036437,14]
[377562140,1754442687591,-3486.93160641,0.00036438,21]
[377562141,1754442687601,-5345.15310398,0.00036438,2]
[377562142,1754442687610,-693216.19063775,0.00036438,2]
[377562143,1754442687620,-151.0,0.00036438,7]
[377562144,1754442687629,-151.0,0.00036438,7]
[377562145,1754442687639,-400.0,0.00036438,14]
[377562146,1754442687649,-653.55,0.00036438,14]
[377562147,1754442687659,-381.07874213,0.00036438,14]
[377562148,1754442687668,-400.0,0.00036438,14]
[377562149,1754442687681,-400.0,0.00036438,14]
[377562150,1754442687691,-1599.79,0.00036438,14]
[377562151,1754442687700,-400.0,0.00036438,14]
[377562152,1754442687709,-400.0,0.00036438,14]
[377562153,1754442687718,-400.0,0.00036438,14]
[377562154,1754442687727,-400.0,0.00036438,14]
[377562155,1754442687737,-400.0,0.00036438,14]
[377562156,1754442687746,-400.0,0.00036438,14]
[377562157,1754442687755,-400.0,0.00036438,14]
[377562158,1754442687764,-271.12008155,0.00036438,14]
[377562159,1754442687773,-400.0,0.00036438,14]
[377562160,1754442687782,-714.57,0.00036438,14]
[377562161,1754442687792,-668.76,0.00036438,14]
[377562162,1754442687801,-641.26,0.00036438,14]
[377562163,1754442687811,-494.87,0.00036438,14]
[377562164,1754442687820,-619.09,0.00036438,14]
[377562165,1754442687830,-702.43,0.00036438,14]
[377562166,1754442687839,-636.76,0.00036438,14]
[377562167,1754442687848,-1360.36,0.00036438,14]
[377562168,1754442687857,-1144.8,0.00036438,14]
[377562169,1754442687867,-571.71,0.00036438,14]
[377562170,1754442687876,-1627.65,0.00036438,14]
[377562171,1754442687885,-885.23,0.00036438,14]
[377562172,1754442687894,-591.54,0.00036438,14]
[377562173,1754442687903,-1168.08,0.00036438,14]
[377562174,1754442687912,-400.0,0.00036438,14]
[377562175,1754442687923,-468.66,0.00036438,14]
[377562176,1754442687932,-400.0,0.00036438,14]
[377562177,1754442687942,-1669.14,0.00036438,14]
[377562178,1754442687951,-1562.12,0.00036438,14]
[377562179,1754442687961,-400.0,0.00036438,14]
[377562180,1754442687970,-720.08,0.00036438,14]
[377562181,1754442687979,-400.0,0.00036438,14]
[377562182,1754442687989,-400.0,0.00036438,14]
[377562183,1754442687998,-400.0,0.00036438,14]
[377562184,1754442688007,-400.0,0.00036438,14]
[377562185,1754442688017,-400.0,0.00036438,14]
[377562186,1754442688026,-400.0,0.00036438,14]
[377562187,1754442688035,-1089.7,0.00036438,14]
[377562188,1754442688045,-490.35,0.00036438,14]
[377562189,1754442688054,-400.0,0.00036438,14]
[377562190,1754442688063,-548.76,0.00036438,14]
[377562191,1754442688073,-749.78,0.00036438,14]
[377562192,1754442688082,-400.0,0.00036438,14]
[377562193,1754442688091,-425.6,0.00036438,14]
[377562194,1754442688101,-400.0,0.00036438,14]
[377562195,1754442688111,-469.53,0.00036438,14]
[377562196,1754442688120,-454.1,0.00036438,14]
[377562197,1754442688130,-462.88,0.00036438,14]
[377562198,1754442688140,-806.86,0.00036438,14]
[377562199,1754442688150,-400.0,0.00036438,14]
[377562200,1754442688159,-400.0,0.00036438,14]
[377562201,1754442688169,-836.15,0.00036438,14]
[377562202,1754442688179,-400.0,0.00036438,14]
[377562203,1754442688189,-400.0,0.00036438,14]
[377562204,1754442688198,-400.0,0.00036438,14]
[377562205,1754442688208,-413.48,0.00036438,14]
[377562206,1754442688218,-400.0,0.00036438,14]
[377562207,1754442688233,-400.0,0.00036438,14]
[377562208,1754442688243,-895.4,0.00036438,14]
[377562209,1754442688254,-400.0,0.00036438,14]
[377562210,1754442688267,-400.0,0.00036438,14]
[377562211,1754442688276,-400.0,0.00036438,14]
[377562212,1754442688285,-702.19,0.00036438,14]
[377562213,1754442688295,-200.0,0.00036438,2]
[377562214,1754442688304,-556.09,0.00036438,14]
[377562215,1754442688314,-400.0,0.00036438,14]
[377562216,1754442688323,-400.0,0.00036438,14]
[377562217,1754442688333,-945.13,0.00036438,14]
[377562218,1754442688342,-814.37,0.00036438,14]
[377562219,1754442688351,-690.4,0.00036438,14]
[377562220,1754442688360,-400.0,0.00036438,14]
[377562221,1754442688370,-888.16,0.00036438,14]
[377562222,1754442688379,-790.45,0.00036438,14]
[377562223,1754442688389,-1548.89,0.00036438,14]
[377562224,1754442688398,-400.0,0.00036438,14]
[377562225,1754442688408,-1700.4,0.00036438,14]
[377562226,1754442688417,-1335.25,0.00036438,14]
[377562227,1754442688429,-1795.56,0.00036438,14]
[377562228,1754442688440,-400.0,0.00036438,14]
[377562229,1754442688449,-400.0,0.00036438,14]
[377562230,1754442688459,-565.7,0.00036438,14]
[377562231,1754442688468,-400.0,0.00036438,14]
[377562232,1754442688478,-1441.51,0.00036438,14]
[377562233,1754442688487,-746.64,0.00036438,14]
[377562234,1754442688497,-1198.41,0.00036438,14]
[377562235,1754442688506,-400.0,0.00036438,14]
[377562236,1754442688516,-400.0,0.00036438,14]
[377562237,1754442688525,-400.38,0.00036438,14]
[377562238,1754442688534,-473.95,0.00036438,14]
[377562239,1754442688543,-353.6408441,0.00036438,14]
[377562240,1754442688553,-400.0,0.00036438,14]
[377562241,1754442688562,-400.0,0.00036438,14]
[377562242,1754442688571,-705.48,0.00036438,14]
[377562243,1754442688581,-400.0,0.00036438,14]
[377562244,1754442688591,-400.0,0.00036438,14]
[377562245,1754442688600,-1109.3,0.00036438,14]
[377562246,1754442688609,-400.0,0.00036438,14]
[377562247,1754442688619,-400.0,0.00036438,14]
[377562248,1754442688628,-676.32,0.00036438,14]
[377562249,1754442688638,-435.15,0.00036438,14]
[377562250,1754442688648,-1083.01,0.00036438,14]
[377562251,1754442688657,-400.0,0.00036438,14]
[377562252,1754442688667,-400.0,0.00036438,14]
[377562253,1754442688677,-618.68,0.00036438,14]
[377562254,1754442688687,-400.0,0.00036438,14]
[377562255,1754442688696,-2053.3,0.00036438,14]
[377562256,1754442688707,-923.51,0.00036438,14]
[377562257,1754442688716,-556.6,0.00036438,14]
[377562258,1754442688726,-400.0,0.00036438,14]
[377562259,1754442688736,-1815.69,0.00036438,14]
[377562260,1754442688745,-400.0,0.00036438,14]
[377562261,1754442688755,-400.0,0.00036438,14]
[377562262,1754442688765,-400.0,0.00036438,14]
[377562263,1754442688775,-713.06,0.00036438,14]
[377562264,1754442688784,-1040.29,0.00036438,14]
[377562265,1754442688794,-400.0,0.00036438,14]
[377562266,1754442688803,-400.0,0.00036438,14]
[377562267,1754442688812,-281.01609686,0.00036438,5]
[377562268,1754442688822,-400.0,0.00036438,14]